{"text_format":"1","workbook":"xlsx","n_sheets":1,"sheets":["Exemplo 1"],"not_rendered":{"charts":1,"images":0,"macros":1,"external_links":0,"defined_names":0,"comments":1,"pivot_tables":0},"unopened":[],"bounds":{"document_bytes":16777216,"sheet_cells":100000,"rows_first":2000,"rows_last":500,"rows_between":2000,"halvings":0,"cell_chars":16384,"cell_head_chars":4096},"cells_cut":0,"cells_raw":0,"read":"whole","date_system":"1900"}

{"sheet":"Exemplo 1","index":0,"n_rows":101,"n_cols":18,"rows_kept":101,"cut":false,"hidden":false,"merged":[[100,15,100,16],[40,15,40,17],[73,15,73,16],[78,15,78,16],[97,15,97,16],[67,15,67,16],[62,15,62,16],[65,15,65,16],[70,15,70,16],[90,15,90,16],[95,15,95,16],[85,15,85,16],[87,15,87,16],[92,15,92,16],[47,15,47,16],[57,15,57,16],[0,0,0,1],[55,15,55,16],[60,15,60,16],[0,3,0,4],[0,6,0,7],[1,15,1,16],[11,15,11,16],[9,15,9,16],[18,15,18,16],[22,15,22,16],[24,15,24,16],[27,15,27,16],[29,15,29,16],[32,15,32,16],[34,15,34,16],[37,15,37,16]]}
["Entrada",null,null,"Entrada Ajustada",null,null,"Rank",null,null,null,"Estatística Básica",{"$f":"A2","v":"cadastro"},{"$f":"B2","v":"promoção"}]
["cadastro","promoção",null,{"$f":"A2","v":"cadastro"},{"$f":"B2","v":"promoção"},null,{"$f":"A2","v":"cadastro"},{"$f":"B2","v":"promoção"},null,null,"Qtd",{"$f":"COUNT(A:A)","v":24},{"$f":"COUNT(B:B)","v":24},null,null,"Configuração"]
[5,1,null,{"$f":"IF($Q$7,IF(A3>B3,A3-B3,\"\"),A3)","v":4},{"$f":"IF($Q$7,IF(B3>A3,B3-A3,\"\"),B3)","v":""},null,{"$f":"IF(D3<>\"\",_xlfn.RANK.AVG(D3,D:E,1),\"\")","v":13.5},"",null,null,"min",{"$f":"MIN(A:A)","v":1},{"$f":"MIN(B:B)","v":1},null,null,"Número de amostras",2]
[2,1,null,{"$f":"IF($Q$7,IF(A4>B4,A4-B4,\"\"),A4)","v":1},{"$f":"IF($Q$7,IF(B4>A4,B4-A4,\"\"),B4)","v":""},null,{"$f":"IF(D4<>\"\",_xlfn.RANK.AVG(D4,D:E,1),\"\")","v":3},{"$f":"IF(E4<>\"\",_xlfn.RANK.AVG(E4,E:F,1),\"\")","v":""},null,null,"q1",{"$f":"QUARTILE(A:A,1)","v":1.75},{"$f":"QUARTILE(B:B,1)","v":1},null,null,"Hipótese de Diferença da Média",0]
[2,1,null,1,"",null,3,"",null,null,"mediana",{"$f":"QUARTILE(A:A,2)","v":3},{"$f":"QUARTILE(B:B,2)","v":1},null,null,"Nível de Significância",0.05]
[6,3,null,3,"",null,10,"",null,null,"q3",{"$f":"QUARTILE(A:A,3)","v":5.25},{"$f":"QUARTILE(B:B,3)","v":2},null,null,"Paramétrica",true]
[5,1,null,4,"",null,13.5,"",null,null,"max",{"$f":"MAX(A:A)","v":10},{"$f":"MAX(B:B)","v":8},null,null,"Pareada",true]
[1,2,null,"",1,null,"",1.5,null,null,"média",{"$f":"AVERAGE(A:A)","v":3.7916666666666665},{"$f":"AVERAGE(B:B)","v":2.0833333333333335}]
[10,2,null,8,"",null,21,"",null,null,null,null,null,null,null,"Cenário",{"$f":"IF(Q3=1,1,IF(Q6,2,3))","v":2}]
[4,1,null,3,"",null,10,"",null,null,null,null,null,null,null,{"$f":"CONCATENATE(\"Veja: \",IF(Q9=1,\"Análise Paramétrica (uma amostra)\",IF(Q9=2,\"Análise Paramétrica (duas amostras)\",\"Análise não-paramétrica (duas amostras)\")))","v":"Veja: Análise Paramétrica (duas amostras)"}]
[9,4,null,5,"",null,17,""]
[4,1,null,3,"",null,10,"",null,null,null,null,null,null,null,"Análise Paramétrica (uma amostra)"]
[2,4,null,"",2,null,"",3,null,null,null,null,null,null,null,"Amostras",{"$f":"A2","v":"cadastro"},"alvo"]
[1,1,null,"","",null,"","",null,null,null,null,null,null,null,"Tamanho",{"$f":"COUNT($A:$A)","v":24}]
[2,1,null,1,"",null,3,"",null,null,null,null,null,null,null,"Média",{"$f":"AVERAGE($A:$A)","v":3.7916666666666665},3]
[8,1,null,7,"",null,19.5,"",null,null,null,null,null,null,null,"Desvio padrão",{"$f":"STDEV($A:$A)","v":2.7343096524282537}]
[1,1,null,"","",null,"","",null,null,null,null,null,null,null,"Graus de Liberdade",{"$f":"Q14-1","v":23}]
[7,2,null,5,"",null,17,""]
[1,2,null,"",1,null,"",1.5,null,null,null,null,null,null,null,"Cálculos Intermediários"]
[3,1,null,2,"",null,7,"",null,null,null,null,null,null,null,"Erro-Padrão da Média Aritmética",{"$f":"Q16/SQRT(Q14)","v":0.55813862060133712}]
[2,7,null,"",5,null,"",4,null,null,null,null,null,null,null,"Estatística do Teste Z",{"$f":"(Q15-R15)/Q20","v":1.4184051012519558}]
[1,1,null,"","",null,"",""]
[1,8,null,"",7,null,"",5,null,null,null,null,null,null,null,{"$f":"CONCATENATE(\"H0: '\",A2,\"' = '\",R15,\"'\")","v":"H0: 'cadastro' = '3'"}]
[6,2,null,4,"",null,13.5,""]
[5,1,null,4,"",null,13.5,"",null,null,null,null,null,null,null,{"$f":"CONCATENATE(\"H1: '\",A2,\"' != '\",R15,\"' - teste bicaudal\")","v":"H1: 'cadastro' != '3' - teste bicaudal"}]
[3,1,null,2,"",null,7,"",null,null,null,null,null,null,null,"Valor Crítico Inferior/Superior",{"$f":"NORMSINV(Q5/2)","v":-1.9599639845400538},{"$f":"NORMSINV(1-Q5/2)","v":1.9599639845400536}]
[null,null,null,null,null,null,null,null,null,null,null,null,null,null,null,"Valor-p",{"$f":"2*(1-NORMSDIST(ABS(Q21)))","v":0.15607252713648823}]
[null,null,null,null,null,null,null,null,null,null,null,null,null,null,null,{"$f":"IF(Q$9<>1,\"*\",IF(Q27<Q5,\"Rejeitar a hipótese nula ('não são iguais')\",\"Não rejeitar a hipótese nula ('são iguais')\"))","v":"*"}]
[]
[null,null,null,null,null,null,null,null,null,null,null,null,null,null,null,{"$f":"CONCATENATE(\"H1-: '\",A2,\"' < '\",R15,\"' - teste da cauda inferior\")","v":"H1-: 'cadastro' < '3' - teste da cauda inferior"}]
[null,null,null,null,null,null,null,null,null,null,null,null,null,null,null,"Valor Crítico Inferior",{"$f":"NORMSINV(Q5)","v":-1.6448536269514726}]
[null,null,null,null,null,null,null,null,null,null,null,null,null,null,null,"Valor-p",{"$f":"NORMSDIST(Q21)","v":0.92196373643175589}]
[null,null,null,null,null,null,null,null,null,null,null,null,null,null,null,{"$f":"IF(Q$9<>1,\"*\",IF(Q32<Q5,\"Rejeitar a hipótese nula ('é menor')\",\"Não rejeitar a hipótese nula ('não é menor')\"))","v":"*"}]
[]
[null,null,null,null,null,null,null,null,null,null,null,null,null,null,null,{"$f":"CONCATENATE(\"H1+: '\",A2,\"' > '\",R15,\"' - teste da cauda superior\")","v":"H1+: 'cadastro' > '3' - teste da cauda superior"}]
[null,null,null,null,null,null,null,null,null,null,null,null,null,null,null,"Valor Crítico Superior",{"$f":"NORMSINV(1-Q5)","v":1.6448536269514715}]
[null,null,null,null,null,null,null,null,null,null,null,null,null,null,null,"Valor-p",{"$f":"1-NORMSDIST(Q21)","v":7.8036263568244113E-2}]
[null,null,null,null,null,null,null,null,null,null,null,null,null,null,null,{"$f":"IF(Q$9<>1,\"*\",IF(Q37<Q5,\"Rejeitar a hipótese nula ('é maior)\",\"Não rejeitar a hipótese nula ('não é maior')\"))","v":"*"}]
[]
[]
[null,null,null,null,null,null,null,null,null,null,null,null,null,null,null,"Análise Paramétrica (duas amostras)"]
[null,null,null,null,null,null,null,null,null,null,null,null,null,null,null,"Amostras",{"$f":"A2","v":"cadastro"},{"$f":"B2","v":"promoção"}]
[null,null,null,null,null,null,null,null,null,null,null,null,null,null,null,"Tamanho",{"$f":"COUNT($A:$A)","v":24},{"$f":"COUNT($B:$B)","v":24}]
[null,null,null,null,null,null,null,null,null,null,null,null,null,null,null,"Média",{"$f":"AVERAGE($A:$A)","v":3.7916666666666665},{"$f":"AVERAGE($B:$B)","v":2.0833333333333335}]
[null,null,null,null,null,null,null,null,null,null,null,null,null,null,null,"Desvio padrão",{"$f":"STDEV($A:$A)","v":2.7343096524282537},{"$f":"STDEV($B:$B)","v":1.909169331471644}]
[null,null,null,null,null,null,null,null,null,null,null,null,null,null,null,"Graus de Liberdade",{"$f":"Q43-1","v":23},{"$f":"R43-1","v":23}]
[]
[null,null,null,null,null,null,null,null,null,null,null,null,null,null,null,"Calculos intermediários"]
[null,null,null,null,null,null,null,null,null,null,null,null,null,null,null,"Total de Graus de Liberdade",{"$f":"IF(Q7,MIN(Q46,R46),Q46+R46)","v":23}]
[null,null,null,null,null,null,null,null,null,null,null,null,null,null,null,"Teste de variância F",{"$f":"_xlfn.F.TEST($A:$A,$B:$B)/2","v":4.5851370029477888E-2}]
[null,null,null,null,null,null,null,null,null,null,null,null,null,null,null,"Homocedástica",{"$f":"Q50>Q5","v":false}]
[null,null,null,null,null,null,null,null,null,null,null,null,null,null,null,"Estatística do Teste t ",{"$f":"_xlfn.T.INV(Q53,Q49)*IF(Q44>R44,-1,1)","v":2.4205201957185762}]
[null,null,null,null,null,null,null,null,null,null,null,null,null,null,null,"DISTT",{"$f":"_xlfn.T.TEST($A:$A,$B:$B,1,IF(Q7,1,IF(Q51,2,3)))","v":1.1899577747278954E-2}]
[null,null,null,null,null,null,null,null,null,null,null,null,null,null,null,"1-DISTT",{"$f":"1-Q53","v":0.9881004222527211}]
[]
[null,null,null,null,null,null,null,null,null,null,null,null,null,null,null,{"$f":"CONCATENATE(\"H0: '\",A2,\"' = '\",B2,\"'\")","v":"H0: 'cadastro' = 'promoção'"}]
[]
[null,null,null,null,null,null,null,null,null,null,null,null,null,null,null,{"$f":"CONCATENATE(\"H1: '\",A2,\"' != '\",B2,\"' - teste bicaudal\")","v":"H1: 'cadastro' != 'promoção' - teste bicaudal"}]
[null,null,null,null,null,null,null,null,null,null,null,null,null,null,null,"Valor Crítico Inferior/Superior",{"$f":"-(TINV(Q5,Q49))","v":-2.0686576104190491},{"$f":"TINV(Q5,Q49)","v":2.0686576104190491}]
[null,null,null,null,null,null,null,null,null,null,null,null,null,null,null,"Valor-p",{"$f":"Q53*2","v":2.3799155494557907E-2}]
[null,null,null,null,null,null,null,null,null,null,null,null,null,null,null,{"$f":"IF(Q$9<>2,\"*\",IF(Q60<Q5,\"Rejeitar a hipótese nula ('não são iguais')\",\"Não rejeitar a hipótese nula ('são iguais')\"))","v":"Rejeitar a hipótese nula ('não são iguais')"}]
[]
[null,null,null,null,null,null,null,null,null,null,null,null,null,null,null,{"$f":"CONCATENATE(\"H1-: '\",A2,\"' < '\",B2,\"' - teste da cauda inferior\")","v":"H1-: 'cadastro' < 'promoção' - teste da cauda inferior"}]
[null,null,null,null,null,null,null,null,null,null,null,null,null,null,null,"Valor Crítico Inferior",{"$f":"-(TINV(2*Q5,Q49))","v":-1.7138715277470482}]
[null,null,null,null,null,null,null,null,null,null,null,null,null,null,null,"Valor-p",{"$f":"IF(Q52<0,Q53,Q54)","v":0.9881004222527211}]
[null,null,null,null,null,null,null,null,null,null,null,null,null,null,null,{"$f":"IF(Q$9<>2,\"*\",IF(Q65<Q5,\"Rejeitar a hipótese nula ('é menor')\",\"Não rejeitar a hipótese nula ('não é menor')\"))","v":"Não rejeitar a hipótese nula ('não é menor')"}]
[]
[null,null,null,null,null,null,null,null,null,null,null,null,null,null,null,{"$f":"CONCATENATE(\"H1+: '\",A2,\"' > '\",B2,\"' - teste da cauda superior\")","v":"H1+: 'cadastro' > 'promoção' - teste da cauda superior"}]
[null,null,null,null,null,null,null,null,null,null,null,null,null,null,null,"Valor Crítico Superior",{"$f":"(TINV(2*Q5,Q49))","v":1.7138715277470482}]
[null,null,null,null,null,null,null,null,null,null,null,null,null,null,null,"Valor-p",{"$f":"IF(Q52<0,Q54,Q53)","v":1.1899577747278954E-2}]
[null,null,null,null,null,null,null,null,null,null,null,null,null,null,null,{"$f":"IF(Q$9<>2,\"*\",IF(Q70<Q5,\"Rejeitar a hipótese nula ('é maior)\",\"Não rejeitar a hipótese nula ('não é maior')\"))","v":"Rejeitar a hipótese nula ('é maior)"}]
[]
[]
[null,null,null,null,null,null,null,null,null,null,null,null,null,null,null,"Análise Não Paramétrica (duas amostras)"]
[null,null,null,null,null,null,null,null,null,null,null,null,null,null,null,"Amostras",{"$f":"A2","v":"cadastro"},{"$f":"B2","v":"promoção"}]
[null,null,null,null,null,null,null,null,null,null,null,null,null,null,null,"Tamanho",{"$f":"COUNT(G:G)","v":16},{"$f":"COUNT(H:H)","v":5}]
[null,null,null,null,null,null,null,null,null,null,null,null,null,null,null,"Soma",{"$f":"SUM(G:G)","v":181.5},{"$f":"SUM(H:H)","v":15}]
[]
[null,null,null,null,null,null,null,null,null,null,null,null,null,null,null,"Calculos intermediários"]
[null,null,null,null,null,null,null,null,null,null,null,null,null,null,null,"Tamanho Total da Amostra n",{"$f":"Q76+R76","v":21}]
[null,null,null,null,null,null,null,null,null,null,null,null,null,null,null,"Estatística do Teste T1 ",{"$f":"IF(Q76<=R76,Q77,R77)","v":15}]
[null,null,null,null,null,null,null,null,null,null,null,null,null,null,null,"Média Aritmética de T1",{"$f":"IF(Q76<=R76,Q76*(Q80+1)/2,R76*(Q80+1)/2)","v":55}]
[null,null,null,null,null,null,null,null,null,null,null,null,null,null,null,"Erro Padrão de T1",{"$f":"SQRT(Q76*R76*(Q80+1)/12)","v":12.110601416389967}]
[null,null,null,null,null,null,null,null,null,null,null,null,null,null,null,"Estatística do Teste Z ",{"$f":"(Q81-Q82)/Q83","v":-3.3028912953790819}]
[]
[null,null,null,null,null,null,null,null,null,null,null,null,null,null,null,{"$f":"CONCATENATE(\"H0: '\",A2,\"' = '\",B2,\"'\")","v":"H0: 'cadastro' = 'promoção'"}]
[]
[null,null,null,null,null,null,null,null,null,null,null,null,null,null,null,{"$f":"CONCATENATE(\"H1: '\",A2,\"' != '\",B2,\"' - teste bicaudal\")","v":"H1: 'cadastro' != 'promoção' - teste bicaudal"}]
[null,null,null,null,null,null,null,null,null,null,null,null,null,null,null,"Valor Crítico Inferior/Superior",{"$f":"NORMSINV(Q5/2)","v":-1.9599639845400538},{"$f":"NORMSINV(1-Q5/2)","v":1.9599639845400536}]
[null,null,null,null,null,null,null,null,null,null,null,null,null,null,null,"Valor-p",{"$f":"2*(1-NORMSDIST(ABS(Q84)))","v":9.5693475644131887E-4}]
[null,null,null,null,null,null,null,null,null,null,null,null,null,null,null,{"$f":"IF(Q$9<>3,\"*\",IF(Q90<$Q$5,\"Rejeitar a hipótese nula ('não são iguais')\",\"Não rejeitar a hipótese nula ('são iguais')\"))","v":"*"}]
[]
[null,null,null,null,null,null,null,null,null,null,null,null,null,null,null,{"$f":"CONCATENATE(\"H1: '\",A2,\"' < '\",B2,\"' - teste da cauda inferior\")","v":"H1: 'cadastro' < 'promoção' - teste da cauda inferior"}]
[null,null,null,null,null,null,null,null,null,null,null,null,null,null,null,"Valor Crítico Inferior",{"$f":"NORMSINV(Q5)","v":-1.6448536269514726}]
[null,null,null,null,null,null,null,null,null,null,null,null,null,null,null,"Valor-p",{"$f":"NORMSDIST(Q84)","v":4.7846737822063385E-4}]
[null,null,null,null,null,null,null,null,null,null,null,null,null,null,null,{"$f":"IF(Q$9<>3,\"*\",IF(Q95<$Q$5,\"Rejeitar a hipótese nula ('é menor')\",\"Não rejeitar a hipótese nula (não é menor'\"))","v":"*"}]
[]
[null,null,null,null,null,null,null,null,null,null,null,null,null,null,null,{"$f":"CONCATENATE(\"H1: '\",A2,\"' > '\",B2,\"' - teste da cauda superior\")","v":"H1: 'cadastro' > 'promoção' - teste da cauda superior"}]
[null,null,null,null,null,null,null,null,null,null,null,null,null,null,null,"Valor Crítico Superior",{"$f":"NORMSINV(1-Q5)","v":1.6448536269514715}]
[null,null,null,null,null,null,null,null,null,null,null,null,null,null,null,"Valor-p",{"$f":"1-NORMSDIST(Q84)","v":0.99952153262177934}]
[null,null,null,null,null,null,null,null,null,null,null,null,null,null,null,{"$f":"IF(Q$9<>3,\"*\",IF(Q100<$Q$5,\"Rejeitar a hipótese nula ('é maior')\",\"Não rejeitar a hipótese nula ('não é maior')\"))","v":"*"}]